[Event "*** Titled Tuesday Blitz"]
[Site "Chess.com"]
[Date "2021.03.30"]
[Round "2"]
[White "jaskol95"]
[Black "Gahan-MG"]
[Result "1-0"]
[WhiteElo "2413"]
[BlackElo "2646"]
[TimeControl "180+1"]
[EndTime "10:15:06 PDT"]
[Termination "jaskol95 won by checkmate"]

1. d4 {[%clk 0:03:00.8]} 1... Nf6 {[%clk 0:02:59.9]} 2. Bf4 {[%clk 0:02:58.4]}
2... d5 {[%clk 0:02:59.7]} 3. e3 {[%clk 0:02:58.1]} 3... c5 {[%clk 0:02:59.7]}
4. c3 {[%clk 0:02:58]} 4... Qb6 {[%clk 0:02:58.2]} 5. Qb3 {[%clk 0:02:53.2]}
5... Nc6 {[%clk 0:02:57.4]} 6. Nd2 {[%clk 0:02:52.8]} 6... g6 {[%clk 0:02:56.6]}
7. dxc5 {[%clk 0:02:50.3]} 7... Qxc5 {[%clk 0:02:56]} 8. Ngf3 {[%clk 0:02:49.3]}
8... Bg7 {[%clk 0:02:55.8]} 9. Be2 {[%clk 0:02:43.7]} 9... O-O {[%clk
0:02:55.9]} 10. Ne5 {[%clk 0:02:38.1]} 10... Nd7 {[%clk 0:02:50.6]} 11. Nxc6
{[%clk 0:02:32.4]} 11... bxc6 {[%clk 0:02:49.1]} 12. O-O {[%clk 0:02:31.1]}
12... e5 {[%clk 0:02:46.6]} 13. Bg3 {[%clk 0:02:31.2]} 13... Rb8 {[%clk
0:02:46.5]} 14. Qc2 {[%clk 0:02:29.4]} 14... Re8 {[%clk 0:02:42.1]} 15. e4
{[%clk 0:02:22.5]} 15... Nf6 {[%clk 0:02:32.3]} 16. Bd3 {[%clk 0:02:09.8]} 16...
a5 {[%clk 0:02:27.1]} 17. Rfe1 {[%clk 0:02:04]} 17... Nh5 {[%clk 0:02:22.3]} 18.
Rac1 {[%clk 0:01:39.2]} 18... Nxg3 {[%clk 0:02:12.8]} 19. hxg3 {[%clk
0:01:40.1]} 19... Be6 {[%clk 0:02:12.4]} 20. exd5 {[%clk 0:01:31.4]} 20... cxd5
{[%clk 0:02:12.1]} 21. Bf1 {[%clk 0:01:24.6]} 21... a4 {[%clk 0:02:05.9]} 22. b3
{[%clk 0:01:18]} 22... Bf5 {[%clk 0:02:03.1]} 23. Qb2 {[%clk 0:01:12.8]} 23...
a3 {[%clk 0:02:01.9]} 24. Qa1 {[%clk 0:01:11.8]} 24... Bh6 {[%clk 0:02:00.7]}
25. Nf3 {[%clk 0:00:44.8]} 25... Bxc1 {[%clk 0:01:59.2]} 26. Rxc1 {[%clk
0:00:45.7]} 26... e4 {[%clk 0:01:54.3]} 27. Nd4 {[%clk 0:00:45.8]} 27... e3
{[%clk 0:01:52.9]} 28. fxe3 {[%clk 0:00:41.8]} 28... Rxe3 {[%clk 0:01:52.2]} 29.
Nxf5 {[%clk 0:00:33.4]} 29... Rxc3+ {[%clk 0:01:47.6]} 30. Kh2 {[%clk
0:00:33.2]} 30... Rxc1 {[%clk 0:01:47.6]} 31. Qg7# {[%clk 0:00:32.8]} 1-0

[Event "*** Titled Tuesday Blitz"]
[Site "Chess.com"]
[Date "2021.03.30"]
[Round "2"]
[White "GigaQuparadze"]
[Black "vlad_Sid"]
[Result "1-0"]
[WhiteElo "2871"]
[BlackElo "2566"]
[TimeControl "180+1"]
[EndTime "10:15:09 PDT"]
[Termination "GigaQuparadze won by resignation"]

1. e4 {[%clk 0:03:00.9]} 1... c6 {[%clk 0:01:03.9]} 2. d4 {[%clk 0:02:58.9]}
2... d5 {[%clk 0:01:04.8]} 3. Nc3 {[%clk 0:02:58.5]} 3... dxe4 {[%clk
0:01:04.9]} 4. Nxe4 {[%clk 0:02:59.4]} 4... Nf6 {[%clk 0:01:05.5]} 5. Nxf6+
{[%clk 0:02:59.3]} 5... exf6 {[%clk 0:01:06.4]} 6. c3 {[%clk 0:02:59.7]} 6...
Bd6 {[%clk 0:01:07.3]} 7. Bd3 {[%clk 0:02:59.9]} 7... O-O {[%clk 0:01:08.2]} 8.
Qc2 {[%clk 0:03:00.4]} 8... Re8+ {[%clk 0:01:09]} 9. Ne2 {[%clk 0:03:00.4]} 9...
h5 {[%clk 0:01:09.9]} 10. O-O {[%clk 0:03:00.3]} 10... Nd7 {[%clk 0:01:10]} 11.
Ng3 {[%clk 0:02:58.8]} 11... Bxg3 {[%clk 0:01:05.5]} 12. fxg3 {[%clk 0:02:58.8]}
12... Nf8 {[%clk 0:01:05.3]} 13. Qf2 {[%clk 0:02:58.7]} 13... a6 {[%clk
0:00:50.3]} 14. b3 {[%clk 0:02:57.1]} 14... c5 {[%clk 0:00:49.5]} 15. Bb2 {[%clk
0:02:49.9]} 15... cxd4 {[%clk 0:00:49.6]} 16. cxd4 {[%clk 0:02:50.8]} 16... Be6
{[%clk 0:00:49.3]} 17. Rfe1 {[%clk 0:02:46.8]} 17... Bd5 {[%clk 0:00:49.1]} 18.
Be2 {[%clk 0:02:45.7]} 18... g6 {[%clk 0:00:47.6]} 19. Bf3 {[%clk 0:02:45.6]}
19... Qd7 {[%clk 0:00:45.7]} 20. Bxd5 {[%clk 0:02:43.1]} 20... Qxd5 {[%clk
0:00:45.2]} 21. Qxf6 {[%clk 0:02:42.6]} 21... Nd7 {[%clk 0:00:39.1]} 22. Qf2
{[%clk 0:02:41.7]} 22... Rac8 {[%clk 0:00:32.1]} 23. h3 {[%clk 0:02:40.1]} 23...
Qd6 {[%clk 0:00:25.6]} 24. d5 {[%clk 0:02:39.4]} 24... Qxd5 {[%clk 0:00:21.5]}
25. Red1 {[%clk 0:02:38.9]} 25... Qe6 {[%clk 0:00:18]} 26. Rxd7 {[%clk
0:02:20.9]} 26... Qxd7 {[%clk 0:00:18.9]} 27. Qf6 {[%clk 0:02:20.4]} 27... Kf8
{[%clk 0:00:19.3]} 28. Qg7+ {[%clk 0:02:18.1]} 28... Ke7 {[%clk 0:00:19.2]} 29.
Re1+ {[%clk 0:02:11.6]} 29... Kd8 {[%clk 0:00:17.3]} 30. Qf6+ {[%clk 0:02:11.2]}
30... Kc7 {[%clk 0:00:17.1]} 31. Be5+ {[%clk 0:02:10.5]} 1-0

[Event "*** Titled Tuesday Blitz"]
[Site "Chess.com"]
[Date "2021.03.30"]
[Round "2"]
[White "oogee"]
[Black "AlphaHero0"]
[Result "0-1"]
[WhiteElo "2380"]
[BlackElo "2103"]
[TimeControl "180+1"]
[EndTime "10:15:10 PDT"]
[Termination "AlphaHero0 won by resignation"]

1. d4 {[%clk 0:03:00.9]} 1... g6 {[%clk 0:03:00.1]} 2. c4 {[%clk 0:02:59.2]}
2... Bg7 {[%clk 0:03:00.3]} 3. Nf3 {[%clk 0:02:59]} 3... d6 {[%clk 0:03:00.1]}
4. Nc3 {[%clk 0:02:59]} 4... Bg4 {[%clk 0:02:59.6]} 5. e4 {[%clk 0:02:56.1]}
5... Nc6 {[%clk 0:02:58]} 6. Be3 {[%clk 0:02:53.9]} 6... e5 {[%clk 0:02:57.2]}
7. d5 {[%clk 0:02:51.7]} 7... Nd4 {[%clk 0:02:56.9]} 8. Be2 {[%clk 0:02:46.9]}
8... Bxf3 {[%clk 0:02:56]} 9. Bxf3 {[%clk 0:02:43.1]} 9... Ne7 {[%clk
0:02:53.2]} 10. Bxd4 {[%clk 0:02:24.7]} 10... exd4 {[%clk 0:02:54.1]} 11. Ne2
{[%clk 0:02:23.7]} 11... c5 {[%clk 0:02:54.7]} 12. dxc6 {[%clk 0:02:18.9]} 12...
bxc6 {[%clk 0:02:55.6]} 13. Nxd4 {[%clk 0:02:14.9]} 13... Qa5+ {[%clk 0:02:56]}
14. Ke2 {[%clk 0:02:11]} 14... O-O {[%clk 0:02:47.2]} 15. Re1 {[%clk 0:02:03.6]}
15... Qc5 {[%clk 0:02:42.2]} 16. Nb3 {[%clk 0:01:55.1]} 16... Qxc4+ {[%clk
0:02:41.5]} 17. Qd3 {[%clk 0:01:55.2]} 17... Qxd3+ {[%clk 0:02:38.4]} 18. Kxd3
{[%clk 0:01:55]} 18... Bxb2 {[%clk 0:02:36.9]} 19. Rad1 {[%clk 0:01:54.6]} 19...
Be5 {[%clk 0:02:36.8]} 20. g3 {[%clk 0:01:52.7]} 20... Rfd8 {[%clk 0:02:28.8]}
21. Bg2 {[%clk 0:01:47.4]} 21... a5 {[%clk 0:02:26.4]} 22. f4 {[%clk 0:01:40.5]}
22... Bg7 {[%clk 0:02:23.9]} 23. Kc2 {[%clk 0:01:37.8]} 23... Rab8 {[%clk
0:02:17.5]} 24. Re3 {[%clk 0:01:29.3]} 24... a4 {[%clk 0:02:11.8]} 25. Nd2
{[%clk 0:01:25.8]} 25... Rb2+ {[%clk 0:02:08.4]} 26. Kd3 {[%clk 0:01:25]} 26...
Rxa2 {[%clk 0:02:06.1]} 27. Rb1 {[%clk 0:01:24.9]} 27... a3 {[%clk 0:01:52.4]}
28. Bh3 {[%clk 0:01:15.4]} 28... Ra1 {[%clk 0:01:33.8]} 29. Rxa1 {[%clk
0:01:08.1]} 29... Bxa1 {[%clk 0:01:34.7]} 30. Kc2 {[%clk 0:01:08]} 30... Ra8
{[%clk 0:01:26.6]} 31. Kb1 {[%clk 0:01:03.5]} 31... Bd4 {[%clk 0:01:23]} 0-1

[Event "*** Titled Tuesday Blitz"]
[Site "Chess.com"]
[Date "2021.03.30"]
[Round "2"]
[White "Genghis_K"]
[Black "MPGM"]
[Result "1-0"]
[WhiteElo "2953"]
[BlackElo "2585"]
[TimeControl "180+1"]
[EndTime "10:15:13 PDT"]
[Termination "Genghis_K won by resignation"]

1. e4 {[%clk 0:03:00.9]} 1... e5 {[%clk 0:02:58.6]} 2. Nf3 {[%clk 0:03:01.4]}
2... Nc6 {[%clk 0:02:58.3]} 3. Bb5 {[%clk 0:03:01.9]} 3... Nf6 {[%clk
0:02:57.2]} 4. O-O {[%clk 0:03:01.9]} 4... Nxe4 {[%clk 0:02:56.8]} 5. Re1 {[%clk
0:03:02.6]} 5... Nd6 {[%clk 0:02:56.4]} 6. Nxe5 {[%clk 0:03:03.2]} 6... Be7
{[%clk 0:02:54.3]} 7. Bf1 {[%clk 0:03:03.5]} 7... Nxe5 {[%clk 0:02:44.4]} 8.
Rxe5 {[%clk 0:03:04.4]} 8... O-O {[%clk 0:02:44.7]} 9. d4 {[%clk 0:03:04.5]}
9... Ne8 {[%clk 0:02:43.2]} 10. c4 {[%clk 0:03:04.2]} 10... Bf6 {[%clk
0:02:31.2]} 11. Re1 {[%clk 0:03:03.9]} 11... d5 {[%clk 0:02:17.1]} 12. cxd5
{[%clk 0:03:04.8]} 12... Qxd5 {[%clk 0:02:10]} 13. Be3 {[%clk 0:03:05.2]} 13...
Bf5 {[%clk 0:01:56.8]} 14. Nc3 {[%clk 0:03:04.6]} 14... Qd7 {[%clk 0:01:57.2]}
15. Rc1 {[%clk 0:02:57.3]} 15... c6 {[%clk 0:01:45.4]} 16. d5 {[%clk 0:02:53.2]}
16... Nd6 {[%clk 0:01:13.9]} 17. dxc6 {[%clk 0:02:37.9]} 17... bxc6 {[%clk
0:00:58.3]} 18. Na4 {[%clk 0:02:38]} 18... Rfd8 {[%clk 0:00:52.5]} 19. Nc5
{[%clk 0:02:37.3]} 19... Qc7 {[%clk 0:00:37.1]} 20. Qe2 {[%clk 0:02:28.6]} 20...
Qa5 {[%clk 0:00:32.5]} 21. b3 {[%clk 0:02:27.6]} 21... h6 {[%clk 0:00:30]} 22.
Red1 {[%clk 0:02:27.9]} 22... Nb5 {[%clk 0:00:27.7]} 23. Nb7 {[%clk 0:02:25.4]}
23... Qc7 {[%clk 0:00:04]} 24. Nxd8 {[%clk 0:02:19.3]} 24... Rxd8 {[%clk
0:00:04.9]} 25. Qxb5 {[%clk 0:02:11.7]} 25... Rxd1 {[%clk 0:00:04.3]} 26. Qxf5
{[%clk 0:02:08.6]} 26... Rxc1 {[%clk 0:00:02.1]} 27. Bxc1 {[%clk 0:02:09.5]}
27... Qd6 {[%clk 0:00:01.6]} 1-0

[Event "*** Titled Tuesday Blitz"]
[Site "Chess.com"]
[Date "2021.03.30"]
[Round "2"]
[White "KaterynaLagno"]
[Black "Lion-Al-Messi"]
[Result "1-0"]
[WhiteElo "2695"]
[BlackElo "2487"]
[TimeControl "180+1"]
[EndTime "10:15:17 PDT"]
[Termination "KaterynaLagno won by resignation"]

1. e4 {[%clk 0:03:00.9]} 1... e6 {[%clk 0:02:57.1]} 2. d4 {[%clk 0:03:00.4]}
2... d5 {[%clk 0:02:58]} 3. Nd2 {[%clk 0:03:00.2]} 3... c5 {[%clk 0:02:57.7]} 4.
exd5 {[%clk 0:02:59.7]} 4... Qxd5 {[%clk 0:02:58.6]} 5. Ngf3 {[%clk 0:02:59]}
5... cxd4 {[%clk 0:02:58.4]} 6. Bc4 {[%clk 0:02:59.7]} 6... Qd6 {[%clk
0:02:58.9]} 7. O-O {[%clk 0:03:00]} 7... Nf6 {[%clk 0:02:59.5]} 8. Nb3 {[%clk
0:03:00.4]} 8... Nc6 {[%clk 0:03:00.2]} 9. Nbxd4 {[%clk 0:02:58.1]} 9... Nxd4
{[%clk 0:03:00.4]} 10. Nxd4 {[%clk 0:02:58.3]} 10... Be7 {[%clk 0:03:00.7]} 11.
c3 {[%clk 0:02:55.6]} 11... O-O {[%clk 0:03:00.6]} 12. Qf3 {[%clk 0:02:55.7]}
12... e5 {[%clk 0:02:59.5]} 13. Nf5 {[%clk 0:02:53.7]} 13... Bxf5 {[%clk
0:02:59.1]} 14. Qxf5 {[%clk 0:02:54.6]} 14... Rac8 {[%clk 0:02:58.7]} 15. Bb3
{[%clk 0:02:51.1]} 15... Rc5 {[%clk 0:02:51.8]} 16. Be3 {[%clk 0:02:50.5]} 16...
Rb5 {[%clk 0:02:45.6]} 17. Rad1 {[%clk 0:02:49.9]} 17... Qc7 {[%clk 0:02:40.9]}
18. h3 {[%clk 0:02:32.1]} 18... g6 {[%clk 0:02:38]} 19. Qd3 {[%clk 0:02:27.8]}
19... a6 {[%clk 0:02:35]} 20. Qe2 {[%clk 0:02:21.2]} 20... e4 {[%clk 0:02:30.5]}
21. Rd2 {[%clk 0:02:16.8]} 21... Rh5 {[%clk 0:02:29.6]} 22. Rfd1 {[%clk
0:02:15.2]} 22... Qe5 {[%clk 0:02:28]} 23. Bd4 {[%clk 0:01:57.2]} 23... Qf4
{[%clk 0:02:20.6]} 24. Qe3 {[%clk 0:01:56.8]} 24... Qf5 {[%clk 0:02:18.3]} 25.
Bc2 {[%clk 0:01:29.6]} 25... Re8 {[%clk 0:02:11.8]} 26. Re2 {[%clk 0:01:24.5]}
26... Bd6 {[%clk 0:02:08.7]} 27. Bxf6 {[%clk 0:01:13.4]} 27... Qxf6 {[%clk
0:02:08.6]} 28. Qd4 {[%clk 0:01:14.1]} 28... Be5 {[%clk 0:02:07.2]} 29. Qd7
{[%clk 0:01:11.6]} 29... Re7 {[%clk 0:01:44.5]} 30. Qd8+ {[%clk 0:01:09.1]}
30... Kg7 {[%clk 0:01:44.3]} 31. Rxe4 {[%clk 0:01:07.7]} 31... Rg5 {[%clk
0:01:39.7]} 32. f4 {[%clk 0:01:00.8]} 32... Bd4+ {[%clk 0:01:28.3]} 33. Qxd4
{[%clk 0:00:57.2]} 1-0

[Event "*** Titled Tuesday Blitz"]
[Site "Chess.com"]
[Date "2021.03.30"]
[Round "2"]
[White "julinha97"]
[Black "Gentlejimmy7"]
[Result "0-1"]
[WhiteElo "2274"]
[BlackElo "2475"]
[TimeControl "180+1"]
[EndTime "10:15:20 PDT"]
[Termination "Gentlejimmy7 won by resignation"]

1. e4 {[%clk 0:03:00.9]} 1... c5 {[%clk 0:02:58.4]} 2. Nf3 {[%clk 0:03:00.5]}
2... Nc6 {[%clk 0:02:58.3]} 3. b4 {[%clk 0:03:00]} 3... e5 {[%clk 0:02:50.4]} 4.
b5 {[%clk 0:02:57.1]} 4... Nd4 {[%clk 0:02:49]} 5. Bc4 {[%clk 0:02:53.5]} 5...
d6 {[%clk 0:02:43.1]} 6. h3 {[%clk 0:02:43.9]} 6... Be6 {[%clk 0:02:40.4]} 7.
Bxe6 {[%clk 0:02:31.6]} 7... Nxe6 {[%clk 0:02:39.5]} 8. c3 {[%clk 0:02:31.9]}
8... Nf6 {[%clk 0:02:39.3]} 9. Qc2 {[%clk 0:02:26.7]} 9... Be7 {[%clk
0:02:38.3]} 10. O-O {[%clk 0:02:26.4]} 10... O-O {[%clk 0:02:38.3]} 11. Na3
{[%clk 0:02:23.5]} 11... d5 {[%clk 0:02:33]} 12. exd5 {[%clk 0:02:20]} 12...
Qxd5 {[%clk 0:02:29.6]} 13. Re1 {[%clk 0:02:09.4]} 13... e4 {[%clk 0:02:20.6]}
14. c4 {[%clk 0:01:57.9]} 14... Qh5 {[%clk 0:02:02.2]} 15. Rxe4 {[%clk
0:01:54.5]} 15... Nxe4 {[%clk 0:01:59.4]} 16. Qxe4 {[%clk 0:01:55.4]} 16... Bf6
{[%clk 0:01:59.5]} 17. Rb1 {[%clk 0:01:53.5]} 17... Rae8 {[%clk 0:01:58.3]} 18.
Qxb7 {[%clk 0:01:49.9]} 18... Nf4 {[%clk 0:01:26.8]} 19. d4 {[%clk 0:01:42.6]}
19... Ne2+ {[%clk 0:01:11.3]} 20. Kh2 {[%clk 0:01:43.2]} 20... cxd4 {[%clk
0:01:09.9]} 21. c5 {[%clk 0:01:31.7]} 21... Be5+ {[%clk 0:01:07.8]} 22. Nxe5
{[%clk 0:01:28.8]} 22... Qxe5+ {[%clk 0:01:08.7]} 23. g3 {[%clk 0:01:27]} 23...
Qxc5 {[%clk 0:00:52.4]} 24. Qf3 {[%clk 0:01:27.5]} 24... Nxc1 {[%clk 0:00:50.1]}
25. Rb2 {[%clk 0:01:21.4]} 25... d3 {[%clk 0:00:49.2]} 26. Nb1 {[%clk
0:01:17.3]} 26... Re2 {[%clk 0:00:46.7]} 0-1

[Event "*** Titled Tuesday Blitz"]
[Site "Chess.com"]
[Date "2021.03.30"]
[Round "2"]
[White "pheonixking2000"]
[Black "Speed-O-Sonic"]
[Result "1-0"]
[WhiteElo "2770"]
[BlackElo "2352"]
[TimeControl "180+1"]
[EndTime "10:15:25 PDT"]
[Termination "pheonixking2000 won by resignation"]

1. c4 {[%clk 0:03:00.9]} 1... c6 {[%clk 0:02:59.9]} 2. e4 {[%clk 0:02:59.5]}
2... d5 {[%clk 0:02:58.5]} 3. cxd5 {[%clk 0:02:54.7]} 3... cxd5 {[%clk
0:02:59.4]} 4. exd5 {[%clk 0:02:54.6]} 4... Nf6 {[%clk 0:02:59.5]} 5. Nc3 {[%clk
0:02:54.6]} 5... g6 {[%clk 0:02:56]} 6. Bc4 {[%clk 0:02:52.1]} 6... Bg7 {[%clk
0:02:55.2]} 7. Nge2 {[%clk 0:02:51.4]} 7... O-O {[%clk 0:02:53.4]} 8. O-O {[%clk
0:02:51.7]} 8... Nbd7 {[%clk 0:02:45.4]} 9. d3 {[%clk 0:02:52]} 9... a6 {[%clk
0:02:09.8]} 10. a4 {[%clk 0:02:51.3]} 10... b6 {[%clk 0:02:04.4]} 11. Nd4 {[%clk
0:02:49.7]} 11... Bb7 {[%clk 0:02:01.8]} 12. Re1 {[%clk 0:02:45.4]} 12... Nc5
{[%clk 0:01:53.2]} 13. Qf3 {[%clk 0:02:38.3]} 13... e6 {[%clk 0:01:48.6]} 14.
Nc6 {[%clk 0:02:38.3]} 14... Bxc6 {[%clk 0:01:42.9]} 15. dxc6 {[%clk 0:02:39.2]}
15... a5 {[%clk 0:01:30.5]} 16. Bf4 {[%clk 0:02:38.1]} 16... Rc8 {[%clk
0:01:25.2]} 17. Rad1 {[%clk 0:02:34.5]} 17... Nh5 {[%clk 0:00:45.1]} 18. d4
{[%clk 0:02:25.2]} 18... Bxd4 {[%clk 0:00:39.1]} 19. Be5 {[%clk 0:02:06.7]}
19... Bxc3 {[%clk 0:00:18]} 20. Rxd8 {[%clk 0:02:04.5]} 20... Bxe1 {[%clk
0:00:18.1]} 21. Rxf8+ {[%clk 0:02:00]} 21... Kxf8 {[%clk 0:00:17.7]} 22. g4
{[%clk 0:01:59.7]} 22... Ng7 {[%clk 0:00:17.6]} 23. c7 {[%clk 0:01:53.1]} 23...
Ne8 {[%clk 0:00:15]} 24. Qc6 {[%clk 0:01:48.3]} 24... Bb4 {[%clk 0:00:09.6]} 25.
Qxb6 {[%clk 0:01:46.8]} 25... Nd7 {[%clk 0:00:09]} 26. Qb7 {[%clk 0:01:44.1]}
1-0

[Event "*** Titled Tuesday Blitz"]
[Site "Chess.com"]
[Date "2021.03.30"]
[Round "2"]
[White "VladaSviridova"]
[Black "tsaruk_maks"]
[Result "0-1"]
[WhiteElo "2246"]
[BlackElo "2618"]
[TimeControl "180+1"]
[EndTime "10:15:26 PDT"]
[Termination "tsaruk_maks won on time"]

1. d4 {[%clk 0:03:00.9]} 1... Nf6 {[%clk 0:02:59.7]} 2. c4 {[%clk 0:03:01.2]}
2... e6 {[%clk 0:02:59]} 3. Nf3 {[%clk 0:03:01]} 3... d5 {[%clk 0:02:59.3]} 4.
Nc3 {[%clk 0:03:00.8]} 4... c5 {[%clk 0:02:59.8]} 5. cxd5 {[%clk 0:02:59.9]}
5... Nxd5 {[%clk 0:03:00.7]} 6. e4 {[%clk 0:03:00.1]} 6... Nxc3 {[%clk
0:03:01.4]} 7. bxc3 {[%clk 0:03:00.8]} 7... cxd4 {[%clk 0:03:02.3]} 8. cxd4
{[%clk 0:03:01.5]} 8... Bb4+ {[%clk 0:03:03]} 9. Bd2 {[%clk 0:03:02.1]} 9...
Bxd2+ {[%clk 0:03:03.8]} 10. Qxd2 {[%clk 0:03:02]} 10... O-O {[%clk 0:03:04.7]}
11. Rc1 {[%clk 0:03:01.6]} 11... b6 {[%clk 0:03:05.6]} 12. Bd3 {[%clk
0:02:51.3]} 12... Bb7 {[%clk 0:03:06.1]} 13. O-O {[%clk 0:02:50.8]} 13... Nc6
{[%clk 0:03:06.2]} 14. Qe3 {[%clk 0:02:07.9]} 14... Rc8 {[%clk 0:02:47.6]} 15.
e5 {[%clk 0:01:58.9]} 15... Nb4 {[%clk 0:02:27]} 16. Rxc8 {[%clk 0:01:16]} 16...
Qxc8 {[%clk 0:02:26.6]} 17. Bxh7+ {[%clk 0:01:06.7]} 17... Kxh7 {[%clk
0:02:26.8]} 18. Ng5+ {[%clk 0:01:06.8]} 18... Kg8 {[%clk 0:02:27.5]} 19. Qh3
{[%clk 0:01:05.7]} 19... Qc2 {[%clk 0:02:28.2]} 20. a3 {[%clk 0:00:19.9]} 20...
Nd5 {[%clk 0:02:21.3]} 21. g3 {[%clk 0:00:09.4]} 21... Qg6 {[%clk 0:02:07]} 22.
Qh4 {[%clk 0:00:08.3]} 22... Rc8 {[%clk 0:02:01.8]} 23. Qg4 {[%clk 0:00:05.5]}
23... Rc2 {[%clk 0:01:59.4]} 24. h4 {[%clk 0:00:05.4]} 24... Ne3 {[%clk
0:01:55.6]} 25. Qf4 {[%clk 0:00:01.6]} 25... Nxf1 {[%clk 0:01:53.6]} 26. h5
{[%clk 0:00:01.5]} 26... Qxh5 {[%clk 0:01:52]} 0-1

[Event "*** Titled Tuesday Blitz"]
[Site "Chess.com"]
[Date "2021.03.30"]
[Round "2"]
[White "enriquetejedor"]
[Black "Firouzja2003"]
[Result "0-1"]
[WhiteElo "2608"]
[BlackElo "3094"]
[TimeControl "180+1"]
[EndTime "10:15:29 PDT"]
[Termination "Firouzja2003 won on time"]

1. e4 {[%clk 0:02:55.9]} 1... b6 {[%clk 0:02:58.6]} 2. Nc3 {[%clk 0:02:55.7]}
2... Bb7 {[%clk 0:02:59.5]} 3. d4 {[%clk 0:02:48.9]} 3... e6 {[%clk 0:02:59.3]}
4. a3 {[%clk 0:02:49]} 4... Nf6 {[%clk 0:02:55.9]} 5. f3 {[%clk 0:02:45.2]} 5...
d5 {[%clk 0:02:55.1]} 6. e5 {[%clk 0:02:44.1]} 6... Nfd7 {[%clk 0:02:54.6]} 7.
f4 {[%clk 0:02:44.4]} 7... c5 {[%clk 0:02:54.5]} 8. Nf3 {[%clk 0:02:43.9]} 8...
Nc6 {[%clk 0:02:54.4]} 9. Be3 {[%clk 0:02:43.3]} 9... cxd4 {[%clk 0:02:47.9]}
10. Nxd4 {[%clk 0:02:43.4]} 10... Bc5 {[%clk 0:02:47.9]} 11. Qd2 {[%clk
0:02:38.8]} 11... O-O {[%clk 0:02:47.2]} 12. Nf3 {[%clk 0:02:00.2]} 12... Ndxe5
{[%clk 0:02:28.2]} 13. Nxe5 {[%clk 0:01:09.7]} 13... Bxe3 {[%clk 0:02:28]} 14.
Qxe3 {[%clk 0:01:08.2]} 14... d4 {[%clk 0:02:28.3]} 15. Nxc6 {[%clk 0:00:41.5]}
15... Bxc6 {[%clk 0:02:24.7]} 16. Qg3 {[%clk 0:00:35.6]} 16... dxc3 {[%clk
0:02:24.3]} 17. Qxc3 {[%clk 0:00:36.5]} 17... Rc8 {[%clk 0:02:24.8]} 18. Qd2
{[%clk 0:00:32.7]} 18... Qf6 {[%clk 0:02:21.7]} 19. O-O-O {[%clk 0:00:29.7]}
19... Be4 {[%clk 0:02:21.2]} 20. Bd3 {[%clk 0:00:11]} 20... Bxd3 {[%clk
0:02:20.2]} 21. Qxd3 {[%clk 0:00:11.9]} 21... Qxf4+ {[%clk 0:02:20.9]} 22. Kb1
{[%clk 0:00:11.9]} 22... Qc7 {[%clk 0:02:21.6]} 23. Rhe1 {[%clk 0:00:04.8]}
23... Rfd8 {[%clk 0:02:21.2]} 24. Qe2 {[%clk 0:00:05.4]} 24... Qxh2 {[%clk
0:02:20.6]} 25. Rxd8+ {[%clk 0:00:03.6]} 25... Rxd8 {[%clk 0:02:20.6]} 26. Qa6
{[%clk 0:00:02.9]} 26... Qc7 {[%clk 0:02:19.9]} 27. Re3 {[%clk 0:00:02]} 27...
g6 {[%clk 0:02:19.9]} 28. Rc3 {[%clk 0:00:01.7]} 28... Qe7 {[%clk 0:02:20.1]}
29. Ka2 {[%clk 0:00:01.7]} 29... e5 {[%clk 0:02:20.5]} 30. Qe2 {[%clk
0:00:01.7]} 30... e4 {[%clk 0:02:20.9]} 31. Re3 {[%clk 0:00:01.5]} 31... Qe6+
{[%clk 0:02:21.6]} 32. b3 {[%clk 0:00:01.6]} 32... Re8 {[%clk 0:02:22.2]} 33.
Rc3 {[%clk 0:00:01.7]} 33... f5 {[%clk 0:02:22.8]} 34. g4 {[%clk 0:00:01.6]}
34... f4 {[%clk 0:02:22.8]} 35. Rc4 {[%clk 0:00:01.5]} 35... f3 {[%clk
0:02:22.5]} 36. Qe3 {[%clk 0:00:01.9]} 36... Qf7 {[%clk 0:02:23]} 37. Rc7 {[%clk
0:00:01.4]} 37... Qxc7 {[%clk 0:02:22.9]} 0-1

[Event "*** Titled Tuesday Blitz"]
[Site "Chess.com"]
[Date "2021.03.30"]
[Round "2"]
[White "Alexsur1981"]
[Black "SilviusTiberius"]
[Result "1-0"]
[WhiteElo "2861"]
[BlackElo "2556"]
[TimeControl "180+1"]
[EndTime "10:15:29 PDT"]
[Termination "Alexsur1981 won by resignation"]

1. e4 {[%clk 0:03:00.9]} 1... e5 {[%clk 0:02:59.5]} 2. f4 {[%clk 0:02:59.4]}
2... exf4 {[%clk 0:02:58.6]} 3. Bc4 {[%clk 0:02:59.5]} 3... Nf6 {[%clk
0:02:49.6]} 4. Nc3 {[%clk 0:02:58.8]} 4... c6 {[%clk 0:02:42.5]} 5. Qf3 {[%clk
0:02:57.9]} 5... b5 {[%clk 0:02:33.3]} 6. Bb3 {[%clk 0:02:57.5]} 6... b4 {[%clk
0:02:27]} 7. Nce2 {[%clk 0:02:57.2]} 7... d5 {[%clk 0:02:24.9]} 8. exd5 {[%clk
0:02:56.9]} 8... cxd5 {[%clk 0:02:15.1]} 9. Nxf4 {[%clk 0:02:55.8]} 9... Bb7
{[%clk 0:02:06.7]} 10. Nge2 {[%clk 0:02:53.8]} 10... Bc5 {[%clk 0:02:00.9]} 11.
d4 {[%clk 0:02:53.2]} 11... Bd6 {[%clk 0:01:49.8]} 12. O-O {[%clk 0:02:49.3]}
12... O-O {[%clk 0:01:49.1]} 13. Ng3 {[%clk 0:02:49]} 13... a5 {[%clk
0:01:24.7]} 14. c3 {[%clk 0:02:44.3]} 14... a4 {[%clk 0:01:04.6]} 15. Bc2 {[%clk
0:02:44.3]} 15... a3 {[%clk 0:01:05.2]} 16. Nf5 {[%clk 0:02:43.9]} 16... Ne4
{[%clk 0:01:01.5]} 17. Nxd5 {[%clk 0:02:31.2]} 17... Bxd5 {[%clk 0:00:54]} 18.
Bxe4 {[%clk 0:02:30.7]} 18... Bxe4 {[%clk 0:00:52.1]} 19. Qxe4 {[%clk
0:02:31.6]} 19... axb2 {[%clk 0:00:46.2]} 20. Bxb2 {[%clk 0:02:32.5]} 20... bxc3
{[%clk 0:00:39.4]} 21. Bxc3 {[%clk 0:02:33.4]} 21... Ra6 {[%clk 0:00:28.4]} 22.
d5 {[%clk 0:02:25.1]} 22... Bc5+ {[%clk 0:00:20.3]} 23. Kh1 {[%clk 0:02:24]}
23... Rg6 {[%clk 0:00:20.8]} 24. Rf3 {[%clk 0:02:11.4]} 24... Nd7 {[%clk
0:00:21]} 25. Qc4 {[%clk 0:01:54.1]} 25... Re8 {[%clk 0:00:19.8]} 26. Raf1
{[%clk 0:01:52.3]} 26... Qb6 {[%clk 0:00:16.9]} 27. Bxg7 {[%clk 0:01:46.3]}
27... Rxg7 {[%clk 0:00:15.6]} 28. Nxg7 {[%clk 0:01:46.4]} 28... Kxg7 {[%clk
0:00:16.1]} 29. Rxf7+ {[%clk 0:01:46.7]} 29... Kg8 {[%clk 0:00:16.5]} 30. Rxd7
{[%clk 0:01:47.6]} 1-0